[Event "*** Titled Tuesday Blitz"]
[Site "Chess.com"]
[Date "2019.02.05"]
[Round "5"]
[White "mishanick"]
[Black "IakovUlivar"]
[Result "1/2-1/2"]
[WhiteElo "3013"]
[BlackElo "2525"]
[TimeControl "180+2"]
[EndTime "14:08:18 PST"]
[Termination "Game drawn - insufficient material"]

1. d4 {[%clk 0:03:01.9]} 1... Nf6 {[%clk 0:03:00.1]} 2. c4 {[%clk 0:03:03]} 2...
e6 {[%clk 0:03:00.6]} 3. Nf3 {[%clk 0:03:04.3]} 3... d5 {[%clk 0:03:00.9]} 4.
Nc3 {[%clk 0:03:05]} 4... Be7 {[%clk 0:03:01.4]} 5. Qc2 {[%clk 0:03:05.9]} 5...
O-O {[%clk 0:03:00]} 6. Bg5 {[%clk 0:03:06.7]} 6... h6 {[%clk 0:02:26.5]} 7.
Bxf6 {[%clk 0:03:07.4]} 7... Bxf6 {[%clk 0:02:28.4]} 8. O-O-O {[%clk 0:03:08.3]}
8... g6 {[%clk 0:02:15.5]} 9. g4 {[%clk 0:03:08.2]} 9... c6 {[%clk 0:02:07.7]}
10. h4 {[%clk 0:03:08.9]} 10... Bg7 {[%clk 0:02:08.7]} 11. e3 {[%clk 0:03:03.8]}
11... Nd7 {[%clk 0:02:08.2]} 12. cxd5 {[%clk 0:02:56.4]} 12... exd5 {[%clk
0:02:04.7]} 13. Bd3 {[%clk 0:02:56.9]} 13... Re8 {[%clk 0:01:46.1]} 14. h5
{[%clk 0:02:45.6]} 14... g5 {[%clk 0:01:46.1]} 15. Bh7+ {[%clk 0:02:46.5]} 15...
Kf8 {[%clk 0:01:42.7]} 16. Bf5 {[%clk 0:02:48.1]} 16... Nb6 {[%clk 0:01:40.2]}
17. Ne2 {[%clk 0:02:48.6]} 17... Nc4 {[%clk 0:01:13.4]} 18. Ng3 {[%clk
0:02:47.4]} 18... Nd6 {[%clk 0:01:11.8]} 19. Kb1 {[%clk 0:02:44.3]} 19... Nxf5
{[%clk 0:00:58.8]} 20. Nxf5 {[%clk 0:02:46.2]} 20... Re4 {[%clk 0:00:59.4]} 21.
Rdg1 {[%clk 0:02:34]} 21... Bxf5 {[%clk 0:00:52]} 22. gxf5 {[%clk 0:02:34.7]}
22... Bf6 {[%clk 0:00:49.4]} 23. Nh2 {[%clk 0:02:29.3]} 23... Rh4 {[%clk
0:00:30.1]} 24. Ng4 {[%clk 0:02:29]} 24... Rxh1 {[%clk 0:00:31]} 25. Rxh1 {[%clk
0:02:30.2]} 25... Kg7 {[%clk 0:00:31.4]} 26. f4 {[%clk 0:02:26.6]} 26... gxf4
{[%clk 0:00:29.5]} 27. Qg2 {[%clk 0:02:16.6]} 27... Kh7 {[%clk 0:00:29.1]} 28.
Qf3 {[%clk 0:02:09.4]} 28... Qe7 {[%clk 0:00:27.1]} 29. Qxf4 {[%clk 0:02:09.3]}
29... Bg5 {[%clk 0:00:27.2]} 30. Qf3 {[%clk 0:02:10.4]} 30... Re8 {[%clk
0:00:21]} 31. Rh3 {[%clk 0:02:05.5]} 31... Qe4+ {[%clk 0:00:19.9]} 32. Qxe4
{[%clk 0:02:05.9]} 32... Rxe4 {[%clk 0:00:21.8]} 33. Rg3 {[%clk 0:02:07.1]}
33... f6 {[%clk 0:00:17.1]} 34. Kc2 {[%clk 0:02:07.3]} 34... Kg7 {[%clk
0:00:14.2]} 35. Kd3 {[%clk 0:02:08.1]} 35... Kf7 {[%clk 0:00:15]} 36. Nf2 {[%clk
0:02:06.6]} 36... Re8 {[%clk 0:00:11.6]} 37. Nd1 {[%clk 0:02:07]} 37... b6
{[%clk 0:00:10.4]} 38. Nc3 {[%clk 0:02:07.5]} 38... b5 {[%clk 0:00:06.2]} 39. a3
{[%clk 0:02:07.9]} 39... a5 {[%clk 0:00:03.6]} 40. Rh3 {[%clk 0:02:07.9]} 40...
a4 {[%clk 0:00:04.5]} 41. Rg3 {[%clk 0:02:06.1]} 41... Re7 {[%clk 0:00:05.7]}
42. Na2 {[%clk 0:02:05.8]} 42... Ke8 {[%clk 0:00:05.1]} 43. Nb4 {[%clk
0:02:05.2]} 43... Kd7 {[%clk 0:00:06.4]} 44. Na6 {[%clk 0:02:06.4]} 44... Kd6
{[%clk 0:00:06.3]} 45. Nc5 {[%clk 0:02:06.3]} 45... Re8 {[%clk 0:00:07]} 46. Ne6
{[%clk 0:02:06.9]} 46... Re7 {[%clk 0:00:03.8]} 47. e4 {[%clk 0:02:07.4]} 47...
dxe4+ {[%clk 0:00:04.1]} 48. Kxe4 {[%clk 0:02:09.3]} 48... Re8 {[%clk
0:00:03.7]} 49. Rg2 {[%clk 0:02:08.6]} 49... Re7 {[%clk 0:00:04.8]} 50. Rg1
{[%clk 0:02:08]} 50... Re8 {[%clk 0:00:06]} 51. Rg3 {[%clk 0:02:07.2]} 51... Rb8
{[%clk 0:00:05.3]} 52. Rc3 {[%clk 0:02:06.5]} 52... b4 {[%clk 0:00:04.4]} 53.
Rc4 {[%clk 0:02:06.4]} 53... bxa3 {[%clk 0:00:03.7]} 54. bxa3 {[%clk 0:02:07.4]}
54... Rb3 {[%clk 0:00:04.3]} 55. Nxg5 {[%clk 0:02:05.2]} 55... hxg5 {[%clk
0:00:05.1]} 56. Rxa4 {[%clk 0:02:06.7]} 56... Rh3 {[%clk 0:00:06.2]} 57. Ra7
{[%clk 0:02:06.5]} 57... Rh4+ {[%clk 0:00:07.1]} 58. Kd3 {[%clk 0:02:07.3]}
58... Rxh5 {[%clk 0:00:08.4]} 59. Rf7 {[%clk 0:02:08.5]} 59... Rh3+ {[%clk
0:00:09.5]} 60. Kc4 {[%clk 0:02:09.5]} 60... Rxa3 {[%clk 0:00:09.6]} 61. Rxf6+
{[%clk 0:02:10.8]} 61... Kd7 {[%clk 0:00:10.7]} 62. Rg6 {[%clk 0:02:11.6]} 62...
Rg3 {[%clk 0:00:10.1]} 63. Rg7+ {[%clk 0:02:12.8]} 63... Kd6 {[%clk 0:00:10.9]}
64. Rg6+ {[%clk 0:02:14.2]} 64... Kd7 {[%clk 0:00:12.1]} 65. Kc5 {[%clk
0:02:14.8]} 65... Rc3+ {[%clk 0:00:12.3]} 66. Kb4 {[%clk 0:02:16.1]} 66... Rd3
{[%clk 0:00:10.6]} 67. Rg7+ {[%clk 0:02:07.6]} 67... Kd6 {[%clk 0:00:11.1]} 68.
Kc4 {[%clk 0:02:09]} 68... Rg3 {[%clk 0:00:11.3]} 69. Rg8 {[%clk 0:02:10.6]}
69... g4 {[%clk 0:00:10.4]} 70. Rg6+ {[%clk 0:02:11.2]} 70... Kd7 {[%clk
0:00:11.1]} 71. Rg8 {[%clk 0:02:06]} 71... Rf3 {[%clk 0:00:10.2]} 72. Rg7+
{[%clk 0:02:06.1]} 72... Kd6 {[%clk 0:00:10.8]} 73. Rg6+ {[%clk 0:02:07.5]}
73... Kd7 {[%clk 0:00:11.9]} 74. f6 {[%clk 0:02:07.6]} 74... g3 {[%clk
0:00:10.8]} 75. Kc5 {[%clk 0:02:06.5]} 75... Rc3+ {[%clk 0:00:10.8]} 76. Kb6
{[%clk 0:02:06.9]} 76... Rb3+ {[%clk 0:00:11.6]} 77. Kc5 {[%clk 0:02:07.6]}
77... Rc3+ {[%clk 0:00:13]} 78. Kb4 {[%clk 0:02:09.1]} 78... Rf3 {[%clk
0:00:13.4]} 79. Kc4 {[%clk 0:02:10.1]} 79... g2 {[%clk 0:00:13.8]} 80. Kc5
{[%clk 0:02:08]} 80... Rf5+ {[%clk 0:00:10.9]} 81. Kb6 {[%clk 0:02:07.1]} 81...
Rxf6 {[%clk 0:00:11.3]} 82. Rxg2 {[%clk 0:02:07.7]} 82... Kd6 {[%clk 0:00:08.3]}
83. Rg8 {[%clk 0:02:08.8]} 83... Kd5 {[%clk 0:00:07.1]} 84. Rd8+ {[%clk
0:02:07.9]} 84... Kc4 {[%clk 0:00:08.2]} 85. Kb7 {[%clk 0:02:08.5]} 85... Rf4
{[%clk 0:00:06.5]} 86. Kxc6 {[%clk 0:02:09.4]} 86... Rxd4 {[%clk 0:00:07.6]} 87.
Rxd4+ {[%clk 0:02:11.3]} 87... Kxd4 {[%clk 0:00:09.4]} 1/2-1/2

[Event "*** Titled Tuesday Blitz"]
[Site "Chess.com"]
[Date "2019.02.05"]
[Round "5"]
[White "AbdAlAgathos"]
[Black "varacalli"]
[Result "1/2-1/2"]
[WhiteElo "2321"]
[BlackElo "2427"]
[TimeControl "180+2"]
[EndTime "14:08:26 PST"]
[Termination "Game drawn - insufficient material"]

1. e4 {[%clk 0:03:01.9]} 1... e5 {[%clk 0:03:00.6]} 2. Nf3 {[%clk 0:03:02.3]}
2... Nc6 {[%clk 0:03:01.5]} 3. Bb5 {[%clk 0:03:00.9]} 3... a6 {[%clk 0:03:02.4]}
4. Ba4 {[%clk 0:03:02.1]} 4... Nf6 {[%clk 0:03:03]} 5. O-O {[%clk 0:03:01]} 5...
Be7 {[%clk 0:03:04.2]} 6. d3 {[%clk 0:03:01.1]} 6... b5 {[%clk 0:03:04.5]} 7.
Bb3 {[%clk 0:03:02.1]} 7... d6 {[%clk 0:03:06]} 8. a3 {[%clk 0:03:01.9]} 8...
O-O {[%clk 0:03:06.3]} 9. Nc3 {[%clk 0:03:02.7]} 9... h6 {[%clk 0:03:06.7]} 10.
Nd5 {[%clk 0:02:58.9]} 10... Be6 {[%clk 0:03:06.9]} 11. Nxf6+ {[%clk 0:02:44.7]}
11... Bxf6 {[%clk 0:03:05.9]} 12. Bxe6 {[%clk 0:02:46]} 12... fxe6 {[%clk
0:03:07.8]} 13. h3 {[%clk 0:02:42.1]} 13... Ne7 {[%clk 0:03:08.8]} 14. Nh2
{[%clk 0:02:34.7]} 14... Ng6 {[%clk 0:03:09.7]} 15. Qg4 {[%clk 0:02:29.3]} 15...
Qe8 {[%clk 0:03:07.5]} 16. g3 {[%clk 0:02:22.5]} 16... Kh7 {[%clk 0:03:07.1]}
17. Be3 {[%clk 0:02:15.5]} 17... Qe7 {[%clk 0:03:04.9]} 18. h4 {[%clk
0:02:10.8]} 18... Nh8 {[%clk 0:03:00.4]} 19. Kg2 {[%clk 0:01:54.7]} 19... Rf7
{[%clk 0:03:00.9]} 20. f3 {[%clk 0:01:50.6]} 20... Raf8 {[%clk 0:03:01.7]} 21.
Rf2 {[%clk 0:01:50.6]} 21... g6 {[%clk 0:02:57.4]} 22. Raf1 {[%clk 0:01:41.2]}
22... Bg7 {[%clk 0:02:58.5]} 23. h5 {[%clk 0:01:35.2]} 23... gxh5 {[%clk
0:02:56.5]} 24. Qxh5 {[%clk 0:01:35.6]} 24... Qf6 {[%clk 0:02:51.9]} 25. Ng4
{[%clk 0:01:32.7]} 25... Qg6 {[%clk 0:02:52.4]} 26. Qh3 {[%clk 0:01:28.1]} 26...
h5 {[%clk 0:02:33.2]} 27. Rh1 {[%clk 0:01:27.5]} 27... Kg8 {[%clk 0:02:33.5]}
28. Qxh5 {[%clk 0:01:26.5]} 28... c5 {[%clk 0:02:26.9]} 29. Qxg6 {[%clk
0:01:12.5]} 29... Nxg6 {[%clk 0:02:28.8]} 30. Rh5 {[%clk 0:00:56.4]} 30... b4
{[%clk 0:02:19.7]} 31. a4 {[%clk 0:00:54.8]} 31... b3 {[%clk 0:02:13.1]} 32. c3
{[%clk 0:00:51.8]} 32... Rb7 {[%clk 0:02:12.8]} 33. Rf1 {[%clk 0:00:42.3]} 33...
Kf7 {[%clk 0:02:10.3]} 34. Rfh1 {[%clk 0:00:42.3]} 34... Rh8 {[%clk 0:02:11.3]}
35. Rxh8 {[%clk 0:00:41.2]} 35... Nxh8 {[%clk 0:02:13.1]} 36. f4 {[%clk
0:00:26.2]} 36... exf4 {[%clk 0:02:12.4]} 37. gxf4 {[%clk 0:00:28.1]} 37... Ng6
{[%clk 0:02:08.7]} 38. Kf3 {[%clk 0:00:24.1]} 38... Rb8 {[%clk 0:01:47.6]} 39.
Rh5 {[%clk 0:00:20.3]} 39... Bxc3 {[%clk 0:01:45.2]} 40. Bc1 {[%clk 0:00:09.8]}
40... Bg7 {[%clk 0:01:40.9]} 41. f5 {[%clk 0:00:11.1]} 41... exf5 {[%clk
0:01:40.6]} 42. Rxf5+ {[%clk 0:00:11.6]} 42... Kg8 {[%clk 0:01:41.7]} 43. Rd5
{[%clk 0:00:12.3]} 43... Be5 {[%clk 0:01:36.2]} 44. Nh6+ {[%clk 0:00:09.1]}
44... Kf8 {[%clk 0:01:35.1]} 45. Nf5 {[%clk 0:00:11]} 45... Rd8 {[%clk
0:01:33.6]} 46. Bg5 {[%clk 0:00:10.7]} 46... Rd7 {[%clk 0:01:34.2]} 47. Bh6+
{[%clk 0:00:11.1]} 47... Kf7 {[%clk 0:01:35.4]} 48. Bc1 {[%clk 0:00:10.8]} 48...
Nf8 {[%clk 0:01:35]} 49. d4 {[%clk 0:00:11]} 49... cxd4 {[%clk 0:01:35]} 50.
Nxd4 {[%clk 0:00:12.9]} 50... Bxd4 {[%clk 0:01:34.3]} 51. Rxd4 {[%clk
0:00:14.8]} 51... Rc7 {[%clk 0:01:33.3]} 52. Bf4 {[%clk 0:00:12.8]} 52... Rc2
{[%clk 0:01:29.6]} 53. Rxd6 {[%clk 0:00:13.3]} 53... Rxb2 {[%clk 0:01:30.8]} 54.
Rxa6 {[%clk 0:00:14.9]} 54... Ne6 {[%clk 0:01:28.7]} 55. Be5 {[%clk 0:00:12.4]}
55... Ra2 {[%clk 0:01:21.9]} 56. Ra7+ {[%clk 0:00:13.5]} 56... Kg6 {[%clk
0:01:22.1]} 57. Ra6 {[%clk 0:00:11.7]} 57... Kf7 {[%clk 0:01:23.4]} 58. Ra7+
{[%clk 0:00:12.8]} 58... Ke8 {[%clk 0:01:23.8]} 59. Rb7 {[%clk 0:00:11.7]} 59...
Nc5 {[%clk 0:01:19]} 60. Rb8+ {[%clk 0:00:10]} 60... Kd7 {[%clk 0:01:19.2]} 61.
Bd4 {[%clk 0:00:10.7]} 61... Nxa4 {[%clk 0:01:09.5]} 62. Rxb3 {[%clk 0:00:09.8]}
62... Rc2 {[%clk 0:01:09.3]} 63. Rb4 {[%clk 0:00:05.7]} 63... Nc5 {[%clk
0:01:09.2]} 64. Bxc5 {[%clk 0:00:06.5]} 64... Rxc5 {[%clk 0:01:11.1]} 65. Rd4+
{[%clk 0:00:08.1]} 65... Ke6 {[%clk 0:01:11.3]} 66. Kf4 {[%clk 0:00:10]} 66...
Ra5 {[%clk 0:01:11.2]} 67. Rb4 {[%clk 0:00:10.9]} 67... Ra6 {[%clk 0:01:12.2]}
68. Rb5 {[%clk 0:00:11.6]} 68... Ke7 {[%clk 0:01:12.9]} 69. Rh5 {[%clk
0:00:12.4]} 69... Rc6 {[%clk 0:01:13.3]} 70. Rh7+ {[%clk 0:00:12.4]} 70... Ke8
{[%clk 0:01:14.1]} 71. Kf5 {[%clk 0:00:13.5]} 71... Ra6 {[%clk 0:01:15]} 72. e5
{[%clk 0:00:14.7]} 72... Rb6 {[%clk 0:01:16.3]} 73. Rh8+ {[%clk 0:00:12.3]}
73... Ke7 {[%clk 0:01:17.2]} 74. Rh7+ {[%clk 0:00:14.2]} 74... Ke8 {[%clk
0:01:18.7]} 75. e6 {[%clk 0:00:15.5]} 75... Rb1 {[%clk 0:01:19.2]} 76. Rh8+
{[%clk 0:00:16.8]} 76... Ke7 {[%clk 0:01:20.4]} 77. Rh7+ {[%clk 0:00:18.4]}
77... Ke8 {[%clk 0:01:21.7]} 78. Rh5 {[%clk 0:00:16.7]} 78... Rb5+ {[%clk
0:01:18.7]} 79. Kg6 {[%clk 0:00:17.4]} 79... Rxh5 {[%clk 0:01:19.4]} 80. Kxh5
{[%clk 0:00:19.3]} 80... Ke7 {[%clk 0:01:21]} 81. Kg5 {[%clk 0:00:19.5]} 81...
Kxe6 {[%clk 0:01:22.9]} 1/2-1/2

[Event "*** Titled Tuesday Blitz"]
[Site "Chess.com"]
[Date "2019.02.05"]
[Round "5"]
[White "fm_magua"]
[Black "WPWPWP-2015"]
[Result "0-1"]
[WhiteElo "2390"]
[BlackElo "2324"]
[TimeControl "180+2"]
[EndTime "14:08:41 PST"]
[Termination "WPWPWP-2015 won by resignation"]

1. e4 {[%clk 0:03:00.1]} 1... e5 {[%clk 0:02:59.1]} 2. Nf3 {[%clk 0:02:58.9]}
2... Nc6 {[%clk 0:03:00.2]} 3. Bb5 {[%clk 0:02:59.8]} 3... Nf6 {[%clk
0:03:00.8]} 4. O-O {[%clk 0:02:59.4]} 4... Nxe4 {[%clk 0:03:01.9]} 5. d4 {[%clk
0:03:00.2]} 5... Nd6 {[%clk 0:03:02.9]} 6. Bxc6 {[%clk 0:03:01.5]} 6... dxc6
{[%clk 0:03:04.3]} 7. dxe5 {[%clk 0:03:03.2]} 7... Nf5 {[%clk 0:03:05.5]} 8.
Qxd8+ {[%clk 0:03:04.8]} 8... Kxd8 {[%clk 0:03:06.8]} 9. b3 {[%clk 0:03:06.1]}
9... a5 {[%clk 0:03:04.2]} 10. Ba3 {[%clk 0:03:06.7]} 10... c5 {[%clk
0:03:01.5]} 11. Nbd2 {[%clk 0:03:06.2]} 11... b6 {[%clk 0:03:00.4]} 12. Rad1
{[%clk 0:03:04.6]} 12... Bb7 {[%clk 0:02:52.5]} 13. Rfe1 {[%clk 0:02:59.8]}
13... Be7 {[%clk 0:02:41]} 14. e6 {[%clk 0:02:47.5]} 14... f6 {[%clk 0:02:37.4]}
15. Nc4+ {[%clk 0:02:47.1]} 15... Ke8 {[%clk 0:02:35.7]} 16. Bb2 {[%clk
0:02:35.8]} 16... Nd6 {[%clk 0:02:32.2]} 17. Ne3 {[%clk 0:02:34]} 17... a4
{[%clk 0:02:23.9]} 18. Nd5 {[%clk 0:02:32.4]} 18... Bxd5 {[%clk 0:02:23.8]} 19.
Rxd5 {[%clk 0:02:32.7]} 19... axb3 {[%clk 0:02:07.1]} 20. axb3 {[%clk
0:02:33.6]} 20... Ra2 {[%clk 0:02:06.2]} 21. Rb1 {[%clk 0:02:28.8]} 21... c4
{[%clk 0:02:02.8]} 22. Nd4 {[%clk 0:02:16.6]} 22... h5 {[%clk 0:01:55.7]} 23.
Nc6 {[%clk 0:02:13.6]} 23... c3 {[%clk 0:01:50.2]} 24. Bc1 {[%clk 0:01:49.6]}
24... h4 {[%clk 0:00:51.4]} 25. h3 {[%clk 0:01:47.5]} 25... g6 {[%clk 0:00:36]}
26. Be3 {[%clk 0:01:46.2]} 26... Rh5 {[%clk 0:00:25.4]} 27. Rxh5 {[%clk
0:01:42]} 27... gxh5 {[%clk 0:00:26.3]} 28. Nb4 {[%clk 0:01:43]} 28... Ra5
{[%clk 0:00:21.4]} 29. Rd1 {[%clk 0:01:39.6]} 29... Re5 {[%clk 0:00:20.9]} 30.
Bd4 {[%clk 0:01:37.1]} 30... Rxe6 {[%clk 0:00:20.9]} 31. Bxc3 {[%clk 0:01:38.3]}
31... Ne4 {[%clk 0:00:20.9]} 32. Be1 {[%clk 0:01:33.9]} 32... c5 {[%clk
0:00:21.2]} 33. Nd5 {[%clk 0:01:31.6]} 33... Bd8 {[%clk 0:00:21.2]} 34. Nf4
{[%clk 0:01:26.9]} 34... Re5 {[%clk 0:00:22.1]} 35. f3 {[%clk 0:01:25.2]} 35...
Ng3 {[%clk 0:00:21.6]} 36. Bc3 {[%clk 0:01:23.8]} 36... Rf5 {[%clk 0:00:20.3]}
37. Ne6 {[%clk 0:01:20]} 37... Ne2+ {[%clk 0:00:19.6]} 38. Kf2 {[%clk
0:01:21.1]} 38... Nxc3 {[%clk 0:00:20.7]} 39. Rxd8+ {[%clk 0:01:13]} 39... Ke7
{[%clk 0:00:21.5]} 40. Rd3 {[%clk 0:01:07.4]} 40... Ne4+ {[%clk 0:00:21.3]} 41.
Ke3 {[%clk 0:01:05.5]} 41... Kxe6 {[%clk 0:00:15.6]} 42. Kxe4 {[%clk 0:01:00.5]}
42... Rg5 {[%clk 0:00:15.8]} 43. Rd2 {[%clk 0:00:58]} 43... b5 {[%clk
0:00:16.9]} 44. c4 {[%clk 0:00:53.6]} 44... b4 {[%clk 0:00:15.3]} 45. Ra2 {[%clk
0:00:51.7]} 45... Re5+ {[%clk 0:00:13.8]} 46. Kd3 {[%clk 0:00:52.5]} 46... Rg5
{[%clk 0:00:10.8]} 47. Ke3 {[%clk 0:00:38.8]} 47... Kf5 {[%clk 0:00:09]} 48. Kf2
{[%clk 0:00:29.5]} 48... Rg8 {[%clk 0:00:08.5]} 49. Rd2 {[%clk 0:00:29.6]} 49...
Kf4 {[%clk 0:00:07.1]} 50. Re2 {[%clk 0:00:19.2]} 50... f5 {[%clk 0:00:07.5]}
51. Rd2 {[%clk 0:00:20.5]} 51... Ra8 {[%clk 0:00:08.2]} 52. Rb2 {[%clk
0:00:21.5]} 52... Ra1 {[%clk 0:00:08.8]} 53. Rd2 {[%clk 0:00:19.8]} 53... Rb1
{[%clk 0:00:09.7]} 54. Rd3 {[%clk 0:00:21]} 54... Rb2+ {[%clk 0:00:10.9]} 55.
Kf1 {[%clk 0:00:21.8]} 55... Kg3 {[%clk 0:00:12]} 56. Rd5 {[%clk 0:00:22.7]}
56... Rxb3 {[%clk 0:00:11.7]} 57. Rxc5 {[%clk 0:00:23.7]} 57... Rb1+ {[%clk
0:00:12]} 58. Ke2 {[%clk 0:00:24.6]} 58... Rb2+ {[%clk 0:00:10.8]} 59. Kd3
{[%clk 0:00:25.3]} 59... f4 {[%clk 0:00:07.7]} 60. Rxh5 {[%clk 0:00:24.3]} 60...
Kxg2 {[%clk 0:00:08.6]} 61. Rxh4 {[%clk 0:00:25.3]} 61... Kxf3 {[%clk
0:00:08.6]} 62. c5 {[%clk 0:00:26.6]} 62... Rb1 {[%clk 0:00:09.1]} 63. c6 {[%clk
0:00:26.2]} 63... Rc1 {[%clk 0:00:09.9]} 64. Rh5 {[%clk 0:00:26.7]} 64... b3
{[%clk 0:00:10]} 65. Rb5 {[%clk 0:00:27.3]} 65... Rxc6 {[%clk 0:00:10.5]} 66.
Rxb3 {[%clk 0:00:28.4]} 66... Re6 {[%clk 0:00:11.7]} 67. h4 {[%clk 0:00:28.4]}
67... Re3+ {[%clk 0:00:12.4]} 68. Kc2 {[%clk 0:00:29.6]} 68... Rxb3 {[%clk
0:00:13.2]} 69. Kxb3 {[%clk 0:00:31.1]} 69... Kg4 {[%clk 0:00:13.3]} 70. Kc2
{[%clk 0:00:32.3]} 70... f3 {[%clk 0:00:14.5]} 71. Kd2 {[%clk 0:00:33.3]} 71...
Kg3 {[%clk 0:00:15.5]} 72. h5 {[%clk 0:00:33.1]} 72... f2 {[%clk 0:00:16.6]} 73.
h6 {[%clk 0:00:34.6]} 73... f1=Q {[%clk 0:00:17.1]} 0-1

[Event "*** Titled Tuesday Blitz"]
[Site "Chess.com"]
[Date "2019.02.05"]
[Round "5"]
[White "Frolik67"]
[Black "Lion_DL"]
[Result "1/2-1/2"]
[WhiteElo "2529"]
[BlackElo "2406"]
[TimeControl "180+2"]
[EndTime "14:08:49 PST"]
[Termination "Game drawn - insufficient material"]

1. e4 {[%clk 0:03:01.9]} 1... Nc6 {[%clk 0:03:00.5]} 2. d4 {[%clk 0:03:02.1]}
2... d5 {[%clk 0:03:00.8]} 3. exd5 {[%clk 0:03:01.4]} 3... Qxd5 {[%clk
0:03:01.5]} 4. Be3 {[%clk 0:03:02.6]} 4... e5 {[%clk 0:03:01.2]} 5. Nf3 {[%clk
0:02:55]} 5... Bg4 {[%clk 0:02:44.8]} 6. Be2 {[%clk 0:02:51.7]} 6... O-O-O
{[%clk 0:02:28.3]} 7. Nc3 {[%clk 0:02:45.7]} 7... Bb4 {[%clk 0:02:20.9]} 8. O-O
{[%clk 0:02:33.9]} 8... Bxc3 {[%clk 0:02:21.7]} 9. bxc3 {[%clk 0:02:35.2]} 9...
Nf6 {[%clk 0:02:18.6]} 10. c4 {[%clk 0:02:29.9]} 10... Qe4 {[%clk 0:02:18.4]}
11. d5 {[%clk 0:01:53.6]} 11... Bxf3 {[%clk 0:02:08.8]} 12. gxf3 {[%clk
0:01:31.3]} 12... Qh4 {[%clk 0:02:07.3]} 13. Rb1 {[%clk 0:01:21.6]} 13... Nd4
{[%clk 0:01:38.3]} 14. Bxd4 {[%clk 0:01:18.6]} 14... exd4 {[%clk 0:01:37.7]} 15.
Qd3 {[%clk 0:01:09.3]} 15... Rd6 {[%clk 0:01:23.1]} 16. Kh1 {[%clk 0:00:52.8]}
16... Re8 {[%clk 0:01:20.6]} 17. Rb5 {[%clk 0:00:37.6]} 17... b6 {[%clk
0:01:10.9]} 18. c5 {[%clk 0:00:36.7]} 18... Rxd5 {[%clk 0:01:10.1]} 19. cxb6
{[%clk 0:00:37.9]} 19... axb6 {[%clk 0:01:03.4]} 20. Rxd5 {[%clk 0:00:37.2]}
20... Nxd5 {[%clk 0:01:03.5]} 21. Qf5+ {[%clk 0:00:38.6]} 21... Kb8 {[%clk
0:00:58.4]} 22. Bb5 {[%clk 0:00:36.9]} 22... Rd8 {[%clk 0:00:53.6]} 23. Qxf7
{[%clk 0:00:31.3]} 23... Qh3 {[%clk 0:00:26.6]} 24. Re1 {[%clk 0:00:32.2]} 24...
Nf6 {[%clk 0:00:25.3]} 25. Bf1 {[%clk 0:00:29]} 25... Qxf3+ {[%clk 0:00:25]} 26.
Kg1 {[%clk 0:00:23.4]} 26... Qg4+ {[%clk 0:00:22.8]} 27. Bg2 {[%clk 0:00:23.9]}
27... h5 {[%clk 0:00:20.4]} 28. Qe7 {[%clk 0:00:20.4]} 28... Re8 {[%clk
0:00:19.2]} 29. Qxe8+ {[%clk 0:00:21]} 29... Nxe8 {[%clk 0:00:19.5]} 30. Rxe8+
{[%clk 0:00:22.9]} 30... Qc8 {[%clk 0:00:20]} 31. Rxc8+ {[%clk 0:00:24.4]} 31...
Kxc8 {[%clk 0:00:21.4]} 32. Be4 {[%clk 0:00:26]} 32... Kd7 {[%clk 0:00:22.1]}
33. h4 {[%clk 0:00:27.4]} 33... Kd6 {[%clk 0:00:23.1]} 34. Bg6 {[%clk 0:00:29]}
34... Kc5 {[%clk 0:00:23.2]} 35. Bxh5 {[%clk 0:00:30.5]} 35... Kc4 {[%clk
0:00:24.6]} 36. Bf7+ {[%clk 0:00:28.5]} 36... Kc3 {[%clk 0:00:25.7]} 37. Bb3
{[%clk 0:00:29.5]} 37... c5 {[%clk 0:00:27.2]} 38. f4 {[%clk 0:00:29.8]} 38...
b5 {[%clk 0:00:28.5]} 39. Bd5 {[%clk 0:00:23.6]} 39... Kxc2 {[%clk 0:00:28.7]}
40. f5 {[%clk 0:00:25.2]} 40... d3 {[%clk 0:00:29.3]} 41. h5 {[%clk 0:00:24.8]}
41... c4 {[%clk 0:00:28]} 42. f6 {[%clk 0:00:23.8]} 42... gxf6 {[%clk
0:00:28.5]} 43. h6 {[%clk 0:00:25.3]} 43... d2 {[%clk 0:00:29]} 44. Bf3 {[%clk
0:00:26.5]} 44... Kb1 {[%clk 0:00:30.2]} 45. h7 {[%clk 0:00:26.4]} 45... c3
{[%clk 0:00:31.8]} 46. h8=Q {[%clk 0:00:22.5]} 46... c2 {[%clk 0:00:33.3]} 47.
Qh7 {[%clk 0:00:22.8]} 47... Kb2 {[%clk 0:00:30.3]} 48. Qd3 {[%clk 0:00:16.1]}
48... c1=Q+ {[%clk 0:00:27.7]} 49. Kh2 {[%clk 0:00:16.6]} 49... Qc4 {[%clk
0:00:20.4]} 50. Qxd2+ {[%clk 0:00:16.5]} 50... Ka3 {[%clk 0:00:21]} 51. Kg3
{[%clk 0:00:13.2]} 51... Qxa2 {[%clk 0:00:21.2]} 52. Qa5+ {[%clk 0:00:14.1]}
52... Kb2 {[%clk 0:00:21.4]} 53. Qxb5+ {[%clk 0:00:13.8]} 53... Qb3 {[%clk
0:00:22.8]} 54. Qe2+ {[%clk 0:00:15.1]} 54... Qc2 {[%clk 0:00:23.3]} 55. Qe6
{[%clk 0:00:15.7]} 55... Qc7+ {[%clk 0:00:22.9]} 56. Kg2 {[%clk 0:00:15.1]}
56... Qc2+ {[%clk 0:00:23.3]} 57. Kh3 {[%clk 0:00:14.8]} 57... Qh7+ {[%clk
0:00:24]} 58. Kg3 {[%clk 0:00:15.2]} 58... Qg6+ {[%clk 0:00:24.9]} 59. Kf2
{[%clk 0:00:14.5]} 59... Qc2+ {[%clk 0:00:25.7]} 60. Be2 {[%clk 0:00:15.7]}
60... Qc5+ {[%clk 0:00:26.3]} 61. Kf1 {[%clk 0:00:16.4]} 61... Qc1+ {[%clk
0:00:26]} 62. Kg2 {[%clk 0:00:17.4]} 62... Qg5+ {[%clk 0:00:26.1]} 63. Kf3
{[%clk 0:00:18.4]} 63... Qh5+ {[%clk 0:00:26]} 64. Kf2 {[%clk 0:00:18.8]} 64...
Qh4+ {[%clk 0:00:25]} 65. Kg1 {[%clk 0:00:19.5]} 65... Qg3+ {[%clk 0:00:25.4]}
66. Kf1 {[%clk 0:00:20.7]} 66... Qf4+ {[%clk 0:00:25.9]} 67. Ke1 {[%clk
0:00:21.3]} 67... Qc1+ {[%clk 0:00:25]} 68. Bd1 {[%clk 0:00:22]} 68... Qc3+
{[%clk 0:00:25.1]} 69. Ke2 {[%clk 0:00:21.6]} 69... Qe5+ {[%clk 0:00:25.9]} 70.
Qxe5+ {[%clk 0:00:22.5]} 70... fxe5 {[%clk 0:00:27]} 71. Kd3 {[%clk 0:00:24.4]}
71... e4+ {[%clk 0:00:26]} 72. Ke3 {[%clk 0:00:25]} 72... Kc1 {[%clk 0:00:26.8]}
73. Be2 {[%clk 0:00:26.9]} 73... Kb2 {[%clk 0:00:27.9]} 74. Bg4 {[%clk
0:00:28.8]} 74... Kc1 {[%clk 0:00:29.1]} 75. Bf5 {[%clk 0:00:30.7]} 75... Kb2
{[%clk 0:00:30.3]} 76. Bxe4 {[%clk 0:00:32.6]} 1/2-1/2